[Event "Late-Titled-Tuesday-Blitz-March-19-2024"]
[Site "Chess.com"]
[Date "2024.03.19"]
[Round "9"]
[White "teresin05"]
[Black "PapaieDudu"]
[Result "1-0"]
[WhiteElo "2263"]
[BlackElo "2450"]
[TimeControl "180+1"]
[EndTime "15:43:55 PDT"]
[Termination "teresin05 won on time"]

1. e4 {[%clk 0:03:00.9]} 1... c5 {[%clk 0:02:59.4]} 2. Nf3 {[%clk 0:03:00.8]}
2... d6 {[%clk 0:02:59]} 3. d4 {[%clk 0:03:01.4]} 3... cxd4 {[%clk 0:02:59.9]}
4. Nxd4 {[%clk 0:03:02.2]} 4... Nf6 {[%clk 0:03:00]} 5. f3 {[%clk 0:03:02.7]}
5... a6 {[%clk 0:02:55.5]} 6. c4 {[%clk 0:03:02.5]} 6... e6 {[%clk 0:02:54.5]}
7. Nc3 {[%clk 0:03:02.8]} 7... Be7 {[%clk 0:02:53.5]} 8. Be3 {[%clk 0:03:00.2]}
8... O-O {[%clk 0:02:52.2]} 9. Be2 {[%clk 0:02:58.2]} 9... Nc6 {[%clk
0:02:51.6]} 10. O-O {[%clk 0:02:57.8]} 10... Qc7 {[%clk 0:02:51.4]} 11. Qd2
{[%clk 0:02:51.3]} 11... Rd8 {[%clk 0:02:51.3]} 12. Rfc1 {[%clk 0:02:46.8]}
12... Qb8 {[%clk 0:02:46.1]} 13. Bf1 {[%clk 0:02:38.8]} 13... Bd7 {[%clk
0:02:44]} 14. a3 {[%clk 0:02:34]} 14... h6 {[%clk 0:02:40.8]} 15. b4 {[%clk
0:02:31.3]} 15... Ne5 {[%clk 0:02:40.3]} 16. a4 {[%clk 0:02:18.8]} 16... b6
{[%clk 0:02:39.4]} 17. a5 {[%clk 0:02:12]} 17... bxa5 {[%clk 0:02:29.5]} 18.
bxa5 {[%clk 0:02:12.9]} 18... Qc7 {[%clk 0:02:25.9]} 19. Na4 {[%clk 0:02:11.8]}
19... Bxa4 {[%clk 0:02:22.9]} 20. Rxa4 {[%clk 0:02:12.3]} 20... Rac8 {[%clk
0:02:18.8]} 21. Rb1 {[%clk 0:02:03.5]} 21... d5 {[%clk 0:02:15.1]} 22. cxd5
{[%clk 0:02:02]} 22... exd5 {[%clk 0:02:15.1]} 23. Nf5 {[%clk 0:02:00.9]} 23...
dxe4 {[%clk 0:02:09.1]} 24. Nxe7+ {[%clk 0:01:59.5]} 24... Qxe7 {[%clk
0:02:09.7]} 25. Qf2 {[%clk 0:01:36.9]} 25... exf3 {[%clk 0:01:58.5]} 26. gxf3
{[%clk 0:01:35]} 26... Neg4 {[%clk 0:01:48.6]} 27. fxg4 {[%clk 0:01:26.8]} 27...
Ne4 {[%clk 0:01:36.2]} 28. Qf3 {[%clk 0:00:45.6]} 28... Nc3 {[%clk 0:01:30.1]}
29. Rb7 {[%clk 0:00:43.3]} 29... Qe6 {[%clk 0:01:25.6]} 30. Rf4 {[%clk
0:00:30.1]} 30... Rf8 {[%clk 0:01:14.1]} 31. Bd4 {[%clk 0:00:25]} 31... Nd5
{[%clk 0:01:08.7]} 32. Re4 {[%clk 0:00:22.4]} 32... Qc6 {[%clk 0:01:05.7]} 33.
Rb2 {[%clk 0:00:18.9]} 33... Qc1 {[%clk 0:00:47.4]} 34. Ree2 {[%clk 0:00:18.6]}
34... Nf4 {[%clk 0:00:36.2]} 35. Rf2 {[%clk 0:00:18.6]} 35... Ne6 {[%clk
0:00:30.4]} 36. Be3 {[%clk 0:00:18.7]} 36... Qc7 {[%clk 0:00:26.4]} 37. Bxa6
{[%clk 0:00:18.7]} 37... Rce8 {[%clk 0:00:16.7]} 38. Bd3 {[%clk 0:00:18.5]}
38... Ng5 {[%clk 0:00:10.9]} 39. Bxg5 {[%clk 0:00:18]} 39... hxg5 {[%clk
0:00:11.1]} 40. Qf5 {[%clk 0:00:18.4]} 40... g6 {[%clk 0:00:07.3]} 41. Qxg5
{[%clk 0:00:18]} 41... Re5 {[%clk 0:00:07.2]} 42. Qf6 {[%clk 0:00:16.7]} 42...
Qc1+ {[%clk 0:00:04.5]} 43. Kg2 {[%clk 0:00:16.6]} 43... Qc3 {[%clk 0:00:03.4]}
44. Bxg6 {[%clk 0:00:14.1]} 44... Qc7 {[%clk 0:00:02.2]} 45. Bf5 {[%clk
0:00:09.7]} 45... Re7 {[%clk 0:00:01.1]} 46. Qg5+ {[%clk 0:00:09.8]} 1-0

[Event "Late-Titled-Tuesday-Blitz-March-19-2024"]
[Site "Chess.com"]
[Date "2024.03.19"]
[Round "9"]
[White "Eloist"]
[Black "Dhaydon19"]
[Result "0-1"]
[WhiteElo "2502"]
[BlackElo "2675"]
[TimeControl "180+1"]
[EndTime "15:43:56 PDT"]
[Termination "Dhaydon19 won on time"]

1. e4 {[%clk 0:02:58.1]} 1... c6 {[%clk 0:02:59.8]} 2. Nf3 {[%clk 0:02:57.4]}
2... d5 {[%clk 0:03:00.3]} 3. d3 {[%clk 0:02:57.7]} 3... Bg4 {[%clk 0:02:42.4]}
4. h3 {[%clk 0:02:57.1]} 4... Bxf3 {[%clk 0:02:42.4]} 5. Qxf3 {[%clk 0:02:56.7]}
5... e6 {[%clk 0:02:43]} 6. Be2 {[%clk 0:02:54.7]} 6... Nf6 {[%clk 0:02:43]} 7.
O-O {[%clk 0:02:54.4]} 7... Bd6 {[%clk 0:02:39.8]} 8. Re1 {[%clk 0:02:52.7]}
8... Nbd7 {[%clk 0:02:39.5]} 9. Bf1 {[%clk 0:02:52.3]} 9... Qc7 {[%clk
0:02:38.4]} 10. Qe2 {[%clk 0:02:46.8]} 10... O-O {[%clk 0:02:35.4]} 11. g3
{[%clk 0:02:46.5]} 11... dxe4 {[%clk 0:02:31.9]} 12. dxe4 {[%clk 0:02:46.2]}
12... Bc5 {[%clk 0:02:31.8]} 13. e5 {[%clk 0:02:31.6]} 13... Nd5 {[%clk
0:02:30.4]} 14. Nd2 {[%clk 0:02:26.1]} 14... Ne7 {[%clk 0:02:27]} 15. Nb3 {[%clk
0:02:14.9]} 15... Bb6 {[%clk 0:02:24.7]} 16. a4 {[%clk 0:02:13.5]} 16... a5
{[%clk 0:02:24]} 17. Bg5 {[%clk 0:02:06]} 17... Ng6 {[%clk 0:02:23.1]} 18. Rad1
{[%clk 0:01:57.3]} 18... Ndxe5 {[%clk 0:02:19]} 19. h4 {[%clk 0:01:52.6]} 19...
f6 {[%clk 0:02:15.4]} 20. Be3 {[%clk 0:01:41.6]} 20... Rae8 {[%clk 0:02:12]} 21.
h5 {[%clk 0:01:36.6]} 21... Ne7 {[%clk 0:02:10.7]} 22. Nc5 {[%clk 0:01:27.4]}
22... Nd5 {[%clk 0:02:08.7]} 23. Bd4 {[%clk 0:01:23.7]} 23... Qf7 {[%clk
0:01:26.2]} 24. Bh3 {[%clk 0:01:11.3]} 24... Kh8 {[%clk 0:01:11.7]} 25. c4
{[%clk 0:01:10.1]} 25... Nb4 {[%clk 0:01:10.3]} 26. f4 {[%clk 0:01:01.7]} 26...
Bxc5 {[%clk 0:01:00.3]} 27. Bxc5 {[%clk 0:00:58.6]} 27... Nd7 {[%clk 0:00:59.5]}
28. Bxf8 {[%clk 0:00:46.6]} 28... Nxf8 {[%clk 0:00:58.1]} 29. Bg4 {[%clk
0:00:36.3]} 29... g6 {[%clk 0:00:54.9]} 30. Rd2 {[%clk 0:00:32.4]} 30... e5
{[%clk 0:00:50.8]} 31. Red1 {[%clk 0:00:31.1]} 31... e4 {[%clk 0:00:48.8]} 32.
Rd8 {[%clk 0:00:24.9]} 32... f5 {[%clk 0:00:43.3]} 33. Bh3 {[%clk 0:00:19.4]}
33... Qe7 {[%clk 0:00:40.1]} 34. Rxe8 {[%clk 0:00:18.2]} 34... Qxe8 {[%clk
0:00:40.1]} 35. Qd2 {[%clk 0:00:18.1]} 35... Ne6 {[%clk 0:00:34.6]} 36. Qd6
{[%clk 0:00:15]} 36... Nd3 {[%clk 0:00:29.4]} 37. h6 {[%clk 0:00:10.6]} 37...
Kg8 {[%clk 0:00:29.4]} 38. Bf1 {[%clk 0:00:08.6]} 38... Ndc5 {[%clk 0:00:28.2]}
39. Qe5 {[%clk 0:00:07.9]} 39... Kf7 {[%clk 0:00:25.3]} 40. Rd6 {[%clk
0:00:07.8]} 40... Qe7 {[%clk 0:00:25.2]} 41. Be2 {[%clk 0:00:07.4]} 41... Qf6
{[%clk 0:00:25.3]} 42. Qxf6+ {[%clk 0:00:05.6]} 42... Kxf6 {[%clk 0:00:25]} 43.
Bd1 {[%clk 0:00:05.5]} 43... Ke7 {[%clk 0:00:23.8]} 44. Rd2 {[%clk 0:00:04.9]}
44... Nd8 {[%clk 0:00:18.5]} 45. Bc2 {[%clk 0:00:05.4]} 45... Nf7 {[%clk
0:00:18.9]} 46. Kf2 {[%clk 0:00:05.8]} 46... Nxh6 {[%clk 0:00:19.4]} 47. Ke3
{[%clk 0:00:05.5]} 47... Nf7 {[%clk 0:00:19.9]} 48. Kd4 {[%clk 0:00:05.7]} 48...
Ne6+ {[%clk 0:00:20.1]} 49. Kc3 {[%clk 0:00:05.9]} 49... Nd6 {[%clk 0:00:20.8]}
50. b4 {[%clk 0:00:06]} 50... axb4+ {[%clk 0:00:20.5]} 51. Kxb4 {[%clk
0:00:06.9]} 51... b6 {[%clk 0:00:21]} 52. a5 {[%clk 0:00:06.6]} 52... bxa5+
{[%clk 0:00:20.5]} 53. Kxa5 {[%clk 0:00:06.7]} 53... Nxc4+ {[%clk 0:00:21.1]}
54. Ka6 {[%clk 0:00:05.4]} 54... Nxd2 {[%clk 0:00:21.7]} 0-1

[Event "Late-Titled-Tuesday-Blitz-March-19-2024"]
[Site "Chess.com"]
[Date "2024.03.19"]
[Round "9"]
[White "Meri-Arabidze"]
[Black "LangesNasenhaar"]
[Result "1-0"]
[WhiteElo "2680"]
[BlackElo "2542"]
[TimeControl "180+1"]
[EndTime "15:43:57 PDT"]
[Termination "Meri-Arabidze won on time"]

1. d4 {[%clk 0:03:00.9]} 1... g6 {[%clk 0:03:00.1]} 2. c4 {[%clk 0:03:00.1]}
2... Bg7 {[%clk 0:03:00.8]} 3. Nf3 {[%clk 0:03:00]} 3... c5 {[%clk 0:03:01]} 4.
d5 {[%clk 0:02:59.5]} 4... d6 {[%clk 0:02:58.7]} 5. Nc3 {[%clk 0:02:59.1]} 5...
Bxc3+ {[%clk 0:02:56.1]} 6. bxc3 {[%clk 0:02:59.2]} 6... e5 {[%clk 0:02:56.8]}
7. e4 {[%clk 0:02:54.7]} 7... Nf6 {[%clk 0:02:53.2]} 8. Bd3 {[%clk 0:02:48]}
8... Bg4 {[%clk 0:02:46.6]} 9. h3 {[%clk 0:02:46.6]} 9... Bxf3 {[%clk
0:02:46.6]} 10. Qxf3 {[%clk 0:02:47.5]} 10... Nbd7 {[%clk 0:02:46.9]} 11. Bh6
{[%clk 0:02:44.1]} 11... Qe7 {[%clk 0:02:44.3]} 12. Rb1 {[%clk 0:02:39.3]} 12...
O-O-O {[%clk 0:02:38.2]} 13. O-O {[%clk 0:02:37.1]} 13... Nh5 {[%clk 0:02:31.7]}
14. Rb3 {[%clk 0:02:33.1]} 14... Qf6 {[%clk 0:02:23.6]} 15. Qg4 {[%clk
0:02:27.3]} 15... Qe7 {[%clk 0:02:15.4]} 16. Rfb1 {[%clk 0:02:20.7]} 16... b6
{[%clk 0:02:15.5]} 17. a4 {[%clk 0:02:15.2]} 17... Kc7 {[%clk 0:02:15.5]} 18. a5
{[%clk 0:02:13]} 18... Rb8 {[%clk 0:02:09.3]} 19. axb6+ {[%clk 0:02:03.1]} 19...
axb6 {[%clk 0:02:02.8]} 20. Ra3 {[%clk 0:01:27.9]} 20... Ra8 {[%clk 0:01:59.5]}
21. Rba1 {[%clk 0:01:28.1]} 21... Rxa3 {[%clk 0:01:59]} 22. Rxa3 {[%clk
0:01:29]} 22... Kb7 {[%clk 0:01:58.4]} 23. Qd1 {[%clk 0:01:18.7]} 23... Ra8
{[%clk 0:01:47.7]} 24. Rxa8 {[%clk 0:01:17.5]} 24... Kxa8 {[%clk 0:01:48]} 25.
Qa4+ {[%clk 0:01:18.1]} 25... Kb8 {[%clk 0:01:35.4]} 26. Be3 {[%clk 0:01:17.2]}
26... Qd8 {[%clk 0:01:24.2]} 27. Be2 {[%clk 0:01:07.3]} 27... Nhf6 {[%clk
0:01:19.1]} 28. f3 {[%clk 0:00:57.2]} 28... Qc7 {[%clk 0:01:18.8]} 29. Bd1
{[%clk 0:00:53.5]} 29... Nh5 {[%clk 0:01:11.4]} 30. Qa2 {[%clk 0:00:42.1]} 30...
Nf4 {[%clk 0:01:02.2]} 31. Ba4 {[%clk 0:00:39.9]} 31... Qa7 {[%clk 0:00:55.2]}
32. Qc2 {[%clk 0:00:39.6]} 32... Kc7 {[%clk 0:00:49.1]} 33. Kh2 {[%clk
0:00:35.6]} 33... Nh5 {[%clk 0:00:27.9]} 34. Bb5 {[%clk 0:00:28.9]} 34... Qa3
{[%clk 0:00:24.2]} 35. Qd2 {[%clk 0:00:28.8]} 35... Qa1 {[%clk 0:00:17.5]} 36.
Bf2 {[%clk 0:00:27.9]} 36... Nf4 {[%clk 0:00:14.8]} 37. Bg3 {[%clk 0:00:25.2]}
37... Nh5 {[%clk 0:00:14.6]} 38. Bf2 {[%clk 0:00:20.7]} 38... Nf4 {[%clk
0:00:09.7]} 39. Be3 {[%clk 0:00:18.3]} 39... Nh5 {[%clk 0:00:07.6]} 40. Bh6
{[%clk 0:00:14.2]} 40... f6 {[%clk 0:00:05.3]} 41. Be3 {[%clk 0:00:13.5]} 41...
Nf4 {[%clk 0:00:04.8]} 42. Bxf4 {[%clk 0:00:13.4]} 42... exf4 {[%clk 0:00:05.3]}
43. Qxf4 {[%clk 0:00:12.2]} 43... Qxc3 {[%clk 0:00:05.5]} 44. Qh4 {[%clk
0:00:12.1]} 44... Qe5+ {[%clk 0:00:05.4]} 45. Kg1 {[%clk 0:00:10.1]} 45... h5
{[%clk 0:00:05.1]} 46. Qe1 {[%clk 0:00:09.3]} 46... Qd4+ {[%clk 0:00:05]} 47.
Kh2 {[%clk 0:00:09.5]} 47... Ne5 {[%clk 0:00:02.7]} 48. Qc1 {[%clk 0:00:09.4]}
48... Qf2 {[%clk 0:00:02.3]} 49. Qc3 {[%clk 0:00:08.1]} 49... g5 {[%clk
0:00:01.1]} 50. Qa3 {[%clk 0:00:07.4]} 1-0

[Event "Late-Titled-Tuesday-Blitz-March-19-2024"]
[Site "Chess.com"]
[Date "2024.03.19"]
[Round "9"]
[White "Alex_Banzea"]
[Black "Misterfox120"]
[Result "1/2-1/2"]
[WhiteElo "2582"]
[BlackElo "2474"]
[TimeControl "180+1"]
[EndTime "15:44:00 PDT"]
[Termination "Game drawn by agreement"]

1. d4 {[%clk 0:03:00.9]} 1... d5 {[%clk 0:02:57.8]} 2. Nc3 {[%clk 0:03:01.4]}
2... Nf6 {[%clk 0:02:54.8]} 3. Bf4 {[%clk 0:03:02]} 3... a6 {[%clk 0:02:51.5]}
4. e3 {[%clk 0:03:02.5]} 4... b5 {[%clk 0:02:50.6]} 5. a3 {[%clk 0:03:02.2]}
5... Bb7 {[%clk 0:02:50.4]} 6. Nf3 {[%clk 0:03:01.7]} 6... e6 {[%clk 0:02:49.4]}
7. b4 {[%clk 0:03:01.5]} 7... Bd6 {[%clk 0:02:48.9]} 8. Ne5 {[%clk 0:03:01.8]}
8... Nfd7 {[%clk 0:02:43.1]} 9. Bd3 {[%clk 0:03:00.3]} 9... Nc6 {[%clk
0:02:37.4]} 10. Nxc6 {[%clk 0:01:46.9]} 10... Bxc6 {[%clk 0:02:38.3]} 11. O-O
{[%clk 0:01:45.3]} 11... O-O {[%clk 0:02:27.3]} 12. Ne2 {[%clk 0:01:35]} 12...
Nf6 {[%clk 0:02:19.4]} 13. c3 {[%clk 0:01:31.5]} 13... Qe7 {[%clk 0:02:01.9]}
14. Bc2 {[%clk 0:01:26.4]} 14... Bd7 {[%clk 0:01:54.5]} 15. Nc1 {[%clk
0:01:17.3]} 15... e5 {[%clk 0:01:52.1]} 16. dxe5 {[%clk 0:01:17.8]} 16... Bxe5
{[%clk 0:01:53]} 17. Bxe5 {[%clk 0:01:16.2]} 17... Qxe5 {[%clk 0:01:53.2]} 18.
Qd4 {[%clk 0:01:16.1]} 18... Qd6 {[%clk 0:01:28.1]} 19. Nd3 {[%clk 0:01:16]}
19... Be6 {[%clk 0:01:27.3]} 20. Nc5 {[%clk 0:01:04.7]} 20... Nd7 {[%clk
0:01:24]} 21. Nxd7 {[%clk 0:00:58]} 21... Qxd7 {[%clk 0:01:21.4]} 22. a4 {[%clk
0:00:54.3]} 22... Qc6 {[%clk 0:01:05]} 23. axb5 {[%clk 0:00:43]} 23... axb5
{[%clk 0:01:05.9]} 24. Ra5 {[%clk 0:00:43.4]} 24... Rxa5 {[%clk 0:00:59.8]} 25.
bxa5 {[%clk 0:00:43.7]} 25... Ra8 {[%clk 0:00:58.5]} 26. Ra1 {[%clk 0:00:43.1]}
26... Ra6 {[%clk 0:00:43.8]} 27. Bd3 {[%clk 0:00:41]} 27... Qb7 {[%clk
0:00:39.8]} 28. Qb4 {[%clk 0:00:30.7]} 28... c6 {[%clk 0:00:35.1]} 29. Qd6
{[%clk 0:00:27.6]} 29... Qd7 {[%clk 0:00:30.6]} 30. Qc5 {[%clk 0:00:15.5]} 30...
Qa7 {[%clk 0:00:28.7]} 31. Qxa7 {[%clk 0:00:07.5]} 31... Rxa7 {[%clk 0:00:29.6]}
32. e4 {[%clk 0:00:04.8]} 32... g6 {[%clk 0:00:22.1]} 33. f4 {[%clk 0:00:04.7]}
33... Kf8 {[%clk 0:00:20.1]} 34. Kf2 {[%clk 0:00:05]} 34... Ke7 {[%clk
0:00:19.9]} 35. e5 {[%clk 0:00:04.9]} 35... Bd7 {[%clk 0:00:17.8]} 36. Ke3
{[%clk 0:00:02.8]} 36... c5 {[%clk 0:00:18.1]} 37. g4 {[%clk 0:00:03.5]} 37...
f6 {[%clk 0:00:10.2]} 38. exf6+ {[%clk 0:00:03.1]} 38... Kxf6 {[%clk 0:00:11.1]}
39. h3 {[%clk 0:00:03.3]} 39... h6 {[%clk 0:00:10.5]} 40. Be2 {[%clk 0:00:03.8]}
40... g5 {[%clk 0:00:10.3]} 41. Bf3 {[%clk 0:00:03.7]} 41... Bc6 {[%clk
0:00:10]} 42. Be2 {[%clk 0:00:03.9]} 42... Re7+ {[%clk 0:00:09.8]} 43. Kf2
{[%clk 0:00:03.6]} 43... gxf4 {[%clk 0:00:09.1]} 44. a6 {[%clk 0:00:03.1]} 44...
Ra7 {[%clk 0:00:09.4]} 45. Ra5 {[%clk 0:00:03.2]} 45... Bd7 {[%clk 0:00:07.8]}
46. Bxb5 {[%clk 0:00:03.6]} 46... Bxb5 {[%clk 0:00:08.1]} 47. Rxb5 {[%clk
0:00:04.5]} 47... Rxa6 {[%clk 0:00:08.5]} 48. Rxc5 {[%clk 0:00:05.2]} 48... Ra3
{[%clk 0:00:08.2]} 49. Rxd5 {[%clk 0:00:04.1]} 49... Rxc3 {[%clk 0:00:08.2]} 50.
Rf5+ {[%clk 0:00:04.3]} 50... Kg6 {[%clk 0:00:08]} 51. Rxf4 {[%clk 0:00:04.8]}
51... Rxh3 {[%clk 0:00:08.5]} 52. Kg2 {[%clk 0:00:05.3]} 52... Ra3 {[%clk
0:00:08.6]} 53. Rb4 {[%clk 0:00:05.2]} 53... Ra2+ {[%clk 0:00:07.7]} 1/2-1/2

[Event "Late-Titled-Tuesday-Blitz-March-19-2024"]
[Site "Chess.com"]
[Date "2024.03.19"]
[Round "9"]
[White "kriscacco"]
[Black "LeninGuerra"]
[Result "0-1"]
[WhiteElo "2125"]
[BlackElo "2674"]
[TimeControl "180+1"]
[EndTime "15:44:00 PDT"]
[Termination "LeninGuerra won by resignation"]

1. d4 {[%clk 0:03:00.9]} 1... Nf6 {[%clk 0:02:59.4]} 2. Nf3 {[%clk 0:03:00.8]}
2... e6 {[%clk 0:02:59.4]} 3. Bg5 {[%clk 0:02:58.8]} 3... c5 {[%clk 0:02:59.2]}
4. e3 {[%clk 0:02:58.5]} 4... Be7 {[%clk 0:02:57]} 5. Nbd2 {[%clk 0:02:58.4]}
5... O-O {[%clk 0:02:57.1]} 6. c3 {[%clk 0:02:56.4]} 6... b6 {[%clk 0:02:57.3]}
7. Bd3 {[%clk 0:02:51.7]} 7... Bb7 {[%clk 0:02:57.3]} 8. O-O {[%clk 0:02:50.8]}
8... d6 {[%clk 0:02:57.6]} 9. Qe2 {[%clk 0:02:48.8]} 9... Nbd7 {[%clk
0:02:57.6]} 10. a3 {[%clk 0:02:48.2]} 10... Rc8 {[%clk 0:02:57.3]} 11. h3 {[%clk
0:02:46.1]} 11... h6 {[%clk 0:02:56.6]} 12. Bf4 {[%clk 0:02:45.9]} 12... Re8
{[%clk 0:02:56.7]} 13. Bh2 {[%clk 0:02:45.5]} 13... Bf8 {[%clk 0:02:56.7]} 14.
e4 {[%clk 0:02:44.7]} 14... cxd4 {[%clk 0:02:50.1]} 15. cxd4 {[%clk 0:02:40.8]}
15... e5 {[%clk 0:02:47.5]} 16. d5 {[%clk 0:02:36.4]} 16... Nh5 {[%clk
0:02:32.4]} 17. Rfc1 {[%clk 0:02:32.6]} 17... Qf6 {[%clk 0:02:31.9]} 18. Bb5
{[%clk 0:02:29.9]} 18... Rxc1+ {[%clk 0:01:37.1]} 19. Rxc1 {[%clk 0:02:27.8]}
19... Rc8 {[%clk 0:01:37.4]} 20. Rc4 {[%clk 0:02:21.9]} 20... Rxc4 {[%clk
0:01:23.8]} 21. Qxc4 {[%clk 0:02:21.2]} 21... Qd8 {[%clk 0:01:24.1]} 22. Bc6
{[%clk 0:02:16.5]} 22... Bc8 {[%clk 0:01:23.8]} 23. Nb1 {[%clk 0:02:04.3]} 23...
a6 {[%clk 0:01:23.3]} 24. Nc3 {[%clk 0:02:02.8]} 24... b5 {[%clk 0:01:23.5]} 25.
Qb4 {[%clk 0:01:57.9]} 25... Nc5 {[%clk 0:01:21.3]} 26. a4 {[%clk 0:01:57.8]}
26... bxa4 {[%clk 0:01:15.3]} 27. Nxa4 {[%clk 0:01:57.6]} 27... Nxa4 {[%clk
0:01:11.2]} 28. Qxa4 {[%clk 0:01:57]} 28... Nf6 {[%clk 0:01:09.6]} 29. Nd2
{[%clk 0:01:55.3]} 29... Qb6 {[%clk 0:01:07.7]} 30. Qb3 {[%clk 0:01:51.5]} 30...
Qxb3 {[%clk 0:01:06.4]} 31. Nxb3 {[%clk 0:01:51]} 31... Nxe4 {[%clk 0:01:07]}
32. f4 {[%clk 0:01:48.6]} 32... exf4 {[%clk 0:00:57.7]} 33. Bxf4 {[%clk
0:01:48.4]} 33... g5 {[%clk 0:00:58.2]} 34. Be3 {[%clk 0:01:46.4]} 34... Bg7
{[%clk 0:00:58.2]} 35. Bd4 {[%clk 0:01:46.3]} 35... f5 {[%clk 0:00:54.8]} 36.
Kf1 {[%clk 0:01:42.3]} 36... Nd2+ {[%clk 0:00:51.8]} 37. Nxd2 {[%clk 0:01:40.1]}
37... Bxd4 {[%clk 0:00:52.4]} 38. Nc4 {[%clk 0:01:39.7]} 38... Bc5 {[%clk
0:00:50.7]} 39. b3 {[%clk 0:01:35]} 39... Kf7 {[%clk 0:00:50.6]} 40. Ke2 {[%clk
0:01:34.2]} 40... f4 {[%clk 0:00:47.6]} 41. Kf3 {[%clk 0:01:33.1]} 41... Kf6
{[%clk 0:00:46.3]} 42. g4 {[%clk 0:01:29.8]} 42... fxg3 {[%clk 0:00:41.6]} 43.
Kxg3 {[%clk 0:01:29.2]} 43... Bf5 {[%clk 0:00:37]} 44. Bb7 {[%clk 0:01:24.6]}
44... Be4 {[%clk 0:00:37.4]} 45. h4 {[%clk 0:01:21]} 45... h5 {[%clk 0:00:33.8]}
46. hxg5+ {[%clk 0:01:20.1]} 46... Kxg5 {[%clk 0:00:33]} 47. Nd2 {[%clk
0:01:17.7]} 47... h4+ {[%clk 0:00:32.7]} 48. Kh2 {[%clk 0:01:15.9]} 48... Bd3
{[%clk 0:00:31.3]} 49. Bc8 {[%clk 0:01:12.3]} 49... Kf4 {[%clk 0:00:28]} 50. Kh3
{[%clk 0:01:11]} 50... Bf2 {[%clk 0:00:25.3]} 51. Nc4 {[%clk 0:01:08.7]} 51...
Bf1+ {[%clk 0:00:23.7]} 52. Kh2 {[%clk 0:01:08]} 52... Bxc4 {[%clk 0:00:15]} 53.
bxc4 {[%clk 0:01:06.9]} 53... a5 {[%clk 0:00:15.5]} 54. Bd7 {[%clk 0:01:04.6]}
54... Ke5 {[%clk 0:00:15.4]} 55. Kh3 {[%clk 0:01:00.6]} 55... Kd4 {[%clk
0:00:14.5]} 56. Bb5 {[%clk 0:01:00.3]} 56... Kc5 {[%clk 0:00:14.7]} 57. Kg4
{[%clk 0:00:59.7]} 57... Bg3 {[%clk 0:00:15.1]} 58. Kf3 {[%clk 0:00:57.5]} 58...
Kb4 {[%clk 0:00:15.6]} 59. Ke2 {[%clk 0:00:46.8]} 59... a4 {[%clk 0:00:15.9]}
60. Kd3 {[%clk 0:00:45.8]} 60... a3 {[%clk 0:00:16.3]} 61. Kc2 {[%clk
0:00:45.3]} 61... h3 {[%clk 0:00:16.7]} 62. c5 {[%clk 0:00:44.7]} 62... Kxb5
{[%clk 0:00:16.7]} 63. c6 {[%clk 0:00:44.6]} 63... Kb6 {[%clk 0:00:16.5]} 0-1

[Event "Late-Titled-Tuesday-Blitz-March-19-2024"]
[Site "Chess.com"]
[Date "2024.03.19"]
[Round "9"]
[White "Polish_fighter3000"]
[Black "MagnusCarlsen"]
[Result "0-1"]
[WhiteElo "3140"]
[BlackElo "3264"]
[TimeControl "180+1"]
[EndTime "15:44:08 PDT"]
[Termination "MagnusCarlsen won by resignation"]

1. c4 {[%clk 0:03:00.9]} 1... c5 {[%clk 0:02:58.7]} 2. Nc3 {[%clk 0:03:00.7]}
2... g6 {[%clk 0:02:58.2]} 3. g3 {[%clk 0:02:58.2]} 3... Bg7 {[%clk 0:02:58.2]}
4. Bg2 {[%clk 0:02:58.9]} 4... Nc6 {[%clk 0:02:58.8]} 5. Nf3 {[%clk 0:02:59.1]}
5... d6 {[%clk 0:02:58.2]} 6. O-O {[%clk 0:02:57.6]} 6... Bf5 {[%clk 0:02:58.3]}
7. d3 {[%clk 0:02:55.2]} 7... Qd7 {[%clk 0:02:58.3]} 8. Re1 {[%clk 0:02:46.3]}
8... Bh3 {[%clk 0:02:54.3]} 9. Bh1 {[%clk 0:02:46.3]} 9... Nf6 {[%clk
0:02:53.9]} 10. Rb1 {[%clk 0:02:44.9]} 10... O-O {[%clk 0:02:52.8]} 11. a3
{[%clk 0:02:44.8]} 11... Rac8 {[%clk 0:02:44.5]} 12. b4 {[%clk 0:02:44]} 12...
b6 {[%clk 0:02:44.9]} 13. Ng5 {[%clk 0:02:24.6]} 13... Bf5 {[%clk 0:02:44.1]}
14. h4 {[%clk 0:02:24.9]} 14... h6 {[%clk 0:02:41.2]} 15. Nf3 {[%clk 0:02:25.3]}
15... e6 {[%clk 0:02:34.9]} 16. Bg2 {[%clk 0:02:13.1]} 16... Rfe8 {[%clk
0:02:31.4]} 17. Bd2 {[%clk 0:02:10.7]} 17... d5 {[%clk 0:02:24.6]} 18. cxd5
{[%clk 0:01:52.8]} 18... exd5 {[%clk 0:02:24.4]} 19. bxc5 {[%clk 0:01:53.3]}
19... bxc5 {[%clk 0:02:25.3]} 20. Rc1 {[%clk 0:01:52.1]} 20... Nd4 {[%clk
0:02:15.9]} 21. Nxd4 {[%clk 0:01:49.1]} 21... cxd4 {[%clk 0:02:16.8]} 22. Na2
{[%clk 0:01:48.2]} 22... Rxc1 {[%clk 0:02:12.6]} 23. Nxc1 {[%clk 0:01:49.1]}
23... Ng4 {[%clk 0:02:12.6]} 24. Nb3 {[%clk 0:01:46.1]} 24... Qd6 {[%clk
0:01:38.5]} 25. Bb4 {[%clk 0:01:42.9]} 25... Qe5 {[%clk 0:01:26.4]} 26. Qd2
{[%clk 0:01:36.5]} 26... Ne3 {[%clk 0:00:48.6]} 27. Bc5 {[%clk 0:01:33.8]} 27...
Nxg2 {[%clk 0:00:47.1]} 28. Kxg2 {[%clk 0:01:34.7]} 28... Qb8 {[%clk 0:00:41]}
29. Nxd4 {[%clk 0:01:33.9]} 29... Bd7 {[%clk 0:00:41]} 30. Nf3 {[%clk
0:01:27.7]} 30... Bg4 {[%clk 0:00:41]} 31. Qb4 {[%clk 0:01:21.3]} 31... Qc8
{[%clk 0:00:37.9]} 32. Bxa7 {[%clk 0:01:09.5]} 32... Bc3 {[%clk 0:00:36.6]} 33.
Rc1 {[%clk 0:01:03.3]} 33... Bxb4 {[%clk 0:00:28.4]} 34. Rxc8 {[%clk 0:01:03.6]}
34... Bxc8 {[%clk 0:00:29.3]} 35. axb4 {[%clk 0:01:02.8]} 35... Rxe2 {[%clk
0:00:30.2]} 36. b5 {[%clk 0:00:35.5]} 36... Rb2 {[%clk 0:00:26.3]} 37. Nd4
{[%clk 0:00:34.2]} 37... Bf5 {[%clk 0:00:24]} 38. Nxf5 {[%clk 0:00:30.5]} 38...
gxf5 {[%clk 0:00:24.9]} 39. Kf3 {[%clk 0:00:30.5]} 39... Rxb5 {[%clk 0:00:22.4]}
40. Kf4 {[%clk 0:00:17.1]} 40... Rb3 {[%clk 0:00:22.1]} 41. Kxf5 {[%clk
0:00:16.3]} 41... Rxd3 {[%clk 0:00:21.9]} 42. Ke5 {[%clk 0:00:17]} 42... Kg7
{[%clk 0:00:22.1]} 43. Bd4 {[%clk 0:00:16.3]} 43... Kg6 {[%clk 0:00:22.3]} 44.
Be3 {[%clk 0:00:07.2]} 44... h5 {[%clk 0:00:19.9]} 45. Bd4 {[%clk 0:00:03.6]}
45... Rd1 {[%clk 0:00:19.6]} 46. Be3 {[%clk 0:00:02.2]} 46... f6+ {[%clk
0:00:19.7]} 47. Kd6 {[%clk 0:00:02.3]} 47... d4 {[%clk 0:00:20]} 48. Bf4 {[%clk
0:00:03]} 48... d3 {[%clk 0:00:19.6]} 49. Kd5 {[%clk 0:00:02.8]} 49... Rf1
{[%clk 0:00:19.7]} 50. Kd4 {[%clk 0:00:02.7]} 50... Rxf2 {[%clk 0:00:19.5]} 51.
Kxd3 {[%clk 0:00:03.3]} 51... Kf5 {[%clk 0:00:19.8]} 52. Ke3 {[%clk 0:00:03.3]}
52... Rf1 {[%clk 0:00:16.1]} 53. Bd6 {[%clk 0:00:02.9]} 53... Kg4 {[%clk
0:00:16.3]} 54. Ke2 {[%clk 0:00:02.7]} 54... Rf3 {[%clk 0:00:17.2]} 0-1